bitfinex-derivatives/quotes_ETHF0:USTF0_20250314
["timestamp","ask_amount","ask_price","bid_price","bid_amount"]
[1741964097138,2.35036,1916.3,1916.2,42.2049]
[1741964097938,1.3066,1916.3,1916.2,43.24871]
[1741964098541,2.35036,1916.3,1916.2,42.2049]
[1741964100433,2.35036,1916.3,1916.2,40.8]
[1741964100634,2.35036,1916.3,1916.2,42.2251]
[1741964100844,1.04376,1916.3,1916.2,42.2251]
[1741964101537,2.37836,1916.3,1916.2,42.2251]
[1741964102639,2.37836,1916.3,1916.2,40.8]
[1741964102845,1.04381,1916.2,1916.1,0.00782166]
[1741964103047,1.04408,1915.7,1915.6,1.3594]
[1741964103240,1.04408,1915.7,1915.6,42.1594]
[1741964103643,4.25188,1915.7,1915.6,40.8]
[1741964103948,1.04408,1915.7,1915.6,40.8]
[1741964104545,2.44628,1915.7,1915.6,40.8]
[1741964105241,2.53144805,1915.7,1915.6,40.8]
[1741964105449,33.40136805,1915.7,1914.7,3.2078]
[1741964105645,3.2078,1915.0,1914.8,1.4125]
[1741964105851,1.04468,1914.6,1914.5,0.6611]
[1741964106050,5.1017,1914.9,1914.6,1.4125]
[1741964106250,4.4082,1914.9,1914.6,1.4125]
[1741964106444,1.04457,1914.8,1914.7,40.8]
[1741964106746,2.44677,1914.8,1914.7,40.8]
[1741964107650,0.00782166,1914.9,1914.7,40.8]
[1741964107947,0.00782166,1914.9,1914.8,3.14967]
[1741964108144,1.3539,1915.4,1915.1,1.04438]
[1741964108341,1.04428,1915.4,1915.2,2.44214]
[1741964108549,1.04427,1915.4,1915.3,40.8]
[1741964108849,4.25207,1915.4,1915.3,40.8]
[1741964109052,8.19115642,1915.4,1915.3,40.8]
[1741964109252,13.12488642,1915.4,1914.6,3.89522166]
[1741964109443,1.04457,1914.8,1914.7,1.3978]
[1741964109845,3.006,1914.9,1914.7,1.3978]
[1741964110045,1.04457,1914.8,1914.7,1.3978]
[1741964110249,1.04457,1914.8,1914.7,42.1978]
[1741964110554,8.58867,1915.4,1914.8,1.04453]
[1741964110754,1.04446,1915.0,1914.9,1.444]
[1741964110949,0.7109,1915.4,1914.9,4.6518]
[1741964111151,4.3665,1915.4,1914.9,4.6518]
[1741964111351,4.3665,1915.4,1915.3,1.0443]
[1741964111352,5.41077,1915.4,1915.3,1.0443]
[1741964111550,3.21562166,1915.5,1914.9,7.26309]
[1741964111551,3.21562166,1915.5,1915.1,3.2078]
[1741964111856,3.21562166,1915.5,1915.2,2.7636]
[1741964112153,0.00782166,1915.5,1915.4,1.04425]
[1741964112449,0.00782166,1915.5,1915.4,2.48825]
[1741964112847,1.05201166,1915.5,1915.4,1.444]
[1741964114258,2.47021166,1915.5,1915.4,1.444]
[1741964114854,1.04425,1915.4,1915.3,40.8]
[1741964115047,2.547627,1915.4,1915.3,40.8]
[1741964115248,2.46245,1915.4,1915.3,40.8]
[1741964115447,2.54763343,1915.4,1915.3,40.8]
[1741964115646,7.21118343,1915.4,1914.8,0.7187]
[1741964115848,1.04457,1914.8,1914.7,4.5391]
[1741964116348,2.61118,1915.0,1914.7,4.5391]
[1741964116349,3.006,1915.2,1914.7,4.5391]
[1741964116543,1.04452,1914.9,1914.7,4.5391]
[1741964116850,1.04454,1914.9,1914.8,40.8]
[1741964118861,1.12974799,1914.9,1914.8,40.8]
[1741964119150,2.47694799,1914.9,1914.8,40.8]
[1741964119550,1.04463,1914.7,1914.6,0.00782166]
[1741964119750,7.34363799,1914.7,1914.6,0.00782166]
[1741964120160,8.73953799,1914.7,1914.6,0.00782166]
[1741964120461,8.73953799,1914.7,1914.6,40.80782166]
[1741964120757,34.68753799,1914.7,1914.6,0.00782166]
[1741964120951,32.18753799,1914.7,1914.6,0.00782166]
[1741964121954,32.18755475,1914.7,1914.6,0.00782166]
[1741964123361,28.97975475,1914.7,1914.6,0.00782166]
[1741964123561,32.18755475,1914.7,1914.6,0.00782166]
[1741964123766,32.18755451,1914.7,1914.6,0.00782166]
[1741964124062,32.18755451,1914.7,1914.6,40.80782166]
[1741964124765,27.78565451,1914.7,1914.6,40.80782166]
[1741964124968,24.57785451,1914.7,1914.6,40.80782166]
[1741964125161,24.49263,1914.7,1914.6,40.80782166]
[1741964125364,23.448,1914.7,1914.6,41.85250166]
[1741964126054,1.3339,1915.1,1914.6,41.85250166]
[1741964126055,1.3339,1915.1,1914.6,40.80782166]
[1741964126263,1.04454,1914.9,1914.7,1.04463]
[1741964126462,4.3399,1915.1,1914.8,1.3978]
[1741964126762,1.04452,1914.9,1914.8,1.3978]
[1741964127363,2.37842,1914.9,1914.8,1.3978]
[1741964128167,1.04452,1914.9,1914.8,2.44236]
[1741964128465,4.3399,1915.1,1914.8,1.3978]
[1741964128769,1.04446,1915.0,1914.9,1.3978]
[1741964129863,1.04463,1914.7,1914.6,40.80782166]
[1741964131267,1.04463,1914.7,1914.6,42.14462166]
[1741964133160,4.05063,1914.7,1914.6,40.80782166]
[1741964133361,6.1785413,1914.7,1914.6,0.00782166]
[1741964133766,6.1785413,1914.7,1914.6,1.66e-06]
[1741964133964,8.6785413,1914.7,1914.6,1.66e-06]
[1741964134662,8.59333,1914.7,1914.6,1.66e-06]
[1741964134968,8.67855922,1914.7,1914.6,1.66e-06]
[1741964135167,6.17855922,1914.7,1914.6,1.66e-06]
[1741964137569,8.67855922,1914.7,1914.6,1.66e-06]
[1741964138664,3.17255922,1914.7,1914.6,1.66e-06]
[1741964138870,6.17755922,1914.7,1914.6,1.66e-06]
[1741964141070,6.09233,1914.7,1914.6,1.66e-06]
[1741964142171,6.17755591,1914.7,1914.6,1.66e-06]
[1741964142367,6.1775576,1914.7,1914.6,1.66e-06]
[1741964143367,8.6775576,1914.7,1914.6,1.66e-06]
[1741964144075,14.65556616,1914.7,1914.6,1.66e-06]
[1741964145168,9.15056616,1914.7,1914.6,1.66e-06]
[1741964145362,12.15556616,1914.7,1914.6,1.66e-06]
[1741964145669,4.04863,1914.7,1914.6,1.66e-06]
[1741964145969,4.04863,1914.7,1914.6,2.05740166]
[1741964146274,4.04863,1914.7,1914.6,2.71970166]
[1741964147666,1.04463,1914.7,1914.6,2.71970166]
[1741964148866,1.04463,1914.7,1914.6,1.37400166]
[1741964149062,1.04463,1914.7,1914.6,1.66e-06]
[1741964149063,4.99774502,1914.7,1914.6,1.66e-06]
[1741964149267,6.32104502,1914.7,1914.6,1.66e-06]
[1741964149569,3.8210598,1914.7,1914.6,1.66e-06]
[1741964149762,6.3210598,1914.7,1914.6,1.66e-06]
[1741964150163,12.2990598,1914.7,1914.6,1.66e-06]
[1741964150571,1.0449,1914.2,1914.1,1.3173]
[1741964150770,7.3419298,1914.2,1914.1,1.3173]
[1741964151476,7.2567,1914.2,1914.1,1.3173]
[1741964151668,7.34193748,1914.2,1914.1,1.3173]
[1741964152185,7.34194053,1914.2,1914.1,1.3173]
[1741964152381,8.71694053,1914.2,1914.1,1.3173]
[1741964153266,7.2567,1914.2,1914.1,1.3173]
[1741964153466,4.0489,1914.2,1914.1,1.3173]
[1741964153672,0.00782166,1914.3,1914.1,2.36223]
[1741964153875,1.05267166,1914.3,1914.2,0.702]
[1741964154071,1.05267166,1914.3,1914.2,2.0793]
[1741964156076,0.00782166,1914.3,1914.2,2.0793]
[1741964156282,1.05267166,1914.3,1914.2,2.0793]
[1741964158990,4.34570593,1914.3,1914.2,1.3773]
[1741964159481,1.04496,1914.1,1914.0,0.00782166]
[1741964159687,4.04796,1914.1,1914.0,1.41802166]
[1741964163486,7.25576,1914.1,1914.0,42.21802166]
[1741964163883,1.04496,1914.1,1914.0,42.21802166]
[1741964164189,1.04493,1914.2,1914.0,46.47079166]
[1741964164388,1.04493,1914.2,1914.1,0.6992]
[1741964164599,4.25273,1914.2,1914.1,0.6992]
[1741964164781,4.33796776,1914.2,1914.1,0.6992]
[1741964165086,5.61653,1914.2,1914.1,41.4992]
[1741964165287,5.70176701,1914.2,1914.1,41.4992]
[1741964165586,5.70176701,1914.2,1914.1,42.54416]
[1741964165587,7.25473,1914.2,1914.1,42.54416]
[1741964165791,3.002,1914.2,1914.1,42.54416]
[1741964166093,0.00782166,1914.3,1914.2,1.0449]
[1741964166291,0.00782166,1914.3,1914.1,0.6992]
[1741964166797,1.05270166,1914.3,1914.2,40.8]
[1741964166985,4.26050166,1914.3,1914.2,40.8]
[1741964167199,4.3457364,1914.3,1914.2,42.1976]
[1741964167382,4.3457364,1914.3,1914.2,1.3976]
[1741964167593,1.1379364,1914.3,1914.2,1.3976]
[1741964167790,4.3457332,1914.3,1914.2,1.3976]
[1741964168086,1.1379332,1914.3,1914.2,42.1976]
[1741964168281,1.05270166,1914.3,1914.2,42.1976]
[1741964168480,0.00782166,1914.3,1914.2,43.2425]
[1741964168686,1.05267166,1914.3,1914.2,42.1976]
[1741964169094,0.00782166,1914.3,1914.2,43.2425]
[1741964169590,1.05267166,1914.3,1914.2,42.1976]
[1741964171384,1.05267166,1914.3,1914.2,43.2425]
[1741964171590,1.05267166,1914.3,1914.2,42.1976]
[1741964172197,2.37527166,1914.3,1914.2,1.3976]
[1741964172594,2.37527166,1914.3,1914.2,42.1976]
[1741964172793,1.04496,1914.1,1914.0,0.00782166]
[1741964172993,4.25276,1914.1,1914.0,1.31492166]
[1741964173195,4.33800554,1914.1,1914.0,0.00782166]
[1741964173596,5.66060554,1914.1,1914.0,0.00782166]
[1741964174296,6.02415081,1914.1,1914.0,0.00782166]
[1741964174591,6.02415081,1914.1,1914.0,1.66e-06]
[1741964175194,5.93890527,1914.1,1914.0,1.66e-06]
[1741964175389,6.02416861,1914.1,1914.0,1.66e-06]
[1741964176995,4.97920861,1914.1,1913.3,1.3293]
[1741964177198,2.61281,1913.8,1913.3,1.3293]
[1741964177499,7.66414527,1914.1,1913.3,1.3293]
[1741964177500,1.04534,1913.4,1913.3,1.3293]
[1741964177994,1.04534,1913.4,1913.3,42.1293]
[1741964179092,5.38062,1913.5,1913.3,43.17467]
[1741964179300,4.04528,1913.5,1913.4,1.3996]
[1741964179496,7.25308,1913.5,1913.4,1.3996]
[1741964179797,7.33835321,1913.5,1913.4,1.3996]
[1741964180398,4.13055321,1913.5,1913.4,1.3996]
[1741964180799,4.13055088,1913.5,1913.4,1.3996]
[1741964181096,1.3321,1913.5,1913.4,1.3996]
[1741964181296,1.04528,1913.5,1913.4,1.3996]
[1741964182005,1.04528,1913.5,1913.4,42.1996]
[1741964183502,2.37737,1913.6,1913.4,43.24493]
[1741964183906,1.04528,1913.5,1913.4,42.1996]
[1741964184107,26.6708,1913.8,1913.4,42.1996]
[1741964184298,2.999,1913.7,1913.6,1.04523]
[1741964184696,23.463,1913.8,1913.7,1.04517]
[1741964184901,4.04402,1914.0,1913.9,1.04507]
[1741964185200,1.04507,1913.9,1913.8,3.2078]
[1741964185394,1.04512,1913.8,1913.7,2.7747]
[1741964185802,1.04512,1913.8,1913.7,2.0748]
[1741964186899,2.42472,1913.8,1913.7,2.0748]
[1741964187096,1.04512,1913.8,1913.7,2.0748]
[1741964187706,1.04512,1913.8,1913.7,3.11997]
[1741964187910,4.3776,1914.0,1913.7,2.0748]
[1741964188110,4.04307,1914.0,1913.9,1.04507]
[1741964188614,4.04307,1914.0,1913.8,0.6604]
[1741964188615,2.998,1914.0,1913.8,0.6604]
[1741964188812,1.04501,1914.0,1913.9,2.38347]
[1741964189012,1.04501,1914.0,1913.9,1.3384]
[1741964189513,1.04512,1913.8,1913.7,0.668]
[1741964189722,1.04512,1913.8,1913.7,2.0164]
[1741964190812,1.04512,1913.8,1913.7,3.06157]
[1741964191209,1.04512,1913.8,1913.7,2.0164]
[1741964191818,1.04512,1913.8,1913.7,3.06157]
[1741964192114,1.04512,1913.8,1913.7,2.0164]
[1741964192907,1.04528,1913.5,1913.4,40.8]
[1741964193110,1.04528,1913.5,1913.4,42.1405]
[1741964193306,1.04525,1913.6,1913.5,1.04523]
[1741964193510,2.997,1913.8,1913.6,1.0452]
[1741964193712,4.04212,1913.8,1913.7,1.3405]
[1741964193909,5.42892,1913.8,1913.7,1.3405]
[1741964195520,4.04212,1913.8,1913.7,1.3405]
[1741964195713,1.04512,1913.8,1913.7,1.3405]
[1741964196209,2.37762,1913.8,1913.7,1.3405]
[1741964196809,1.04528,1913.5,1913.4,44.0078]
[1741964197014,1.04528,1913.5,1913.4,40.8]
[1741964197812,1.13055284,1913.5,1913.4,40.8]
[1741964198415,5.45905284,1913.5,1913.4,40.8]
[1741964198611,8.66685284,1913.5,1913.4,40.8]
[1741964198816,1.04539,1913.3,1913.2,0.00782166]
[1741964199013,1.13066284,1913.3,1913.2,0.00782166]
[1741964199517,2.48607569,1913.3,1913.2,0.00782166]
[1741964199720,1.44068569,1913.3,1913.2,40.80782166]
[1741964199912,26.464,1913.5,1913.2,41.85324166]
[1741964200111,26.464,1913.5,1913.4,1.04534]
[1741964200420,27.50928,1913.5,1913.3,3.05875]
[1741964200914,27.50928,1913.5,1913.4,1.3528]
[1741964201114,3.96825,1913.8,1913.4,6.46612]
[1741964201115,1.04516,1913.8,1913.4,6.46612]
[1741964201319,5.98582166,1914.3,1913.8,2.61281]
[1741964201320,0.00782166,1914.3,1913.8,2.61281]
[1741964201513,1.04496,1914.1,1914.0,3.2078]
[1741964201708,0.00782166,1914.3,1914.0,4.25281]
[1741964201909,0.00782166,1914.3,1914.0,3.2078]
[1741964202110,6.2028,1914.7,1914.2,3.2078]
[1741964202413,1.04485,1914.3,1914.2,4.25268]
[1741964202607,2.61144,1914.8,1914.2,5.7078]
[1741964202810,1.04474,1914.5,1914.4,3.2078]
[1741964203118,3.2078,1914.6,1914.3,40.8]
[1741964203309,1.04479,1914.4,1914.3,40.80782166]
[1741964204524,0.00782166,1914.6,1914.3,40.80782166]
[1741964204711,1.04475,1914.5,1914.3,41.85264166]
[1741964204917,1.05254166,1914.6,1914.4,1.04479]
[1741964205119,0.00782166,1914.6,1914.5,4.25254]
[1741964205417,3.2078,1914.9,1914.6,1.04464]
[1741964205418,1.04458,1914.8,1914.6,1.04464]
[1741964205615,1.04457,1914.8,1914.7,1.04463]
[1741964205817,1.04448,1915.0,1914.8,1.04457]
[1741964206019,1.04443,1915.1,1914.9,1.73919]
[1741964206520,1.3838,1915.3,1914.9,0.6947]
[1741964206521,1.04446,1915.0,1914.9,0.6947]
[1741964206731,1.04442,1915.1,1914.9,1.73922]
[1741964206916,1.66e-06,1915.2,1915.1,1.04441]
[1741964207118,32.44481588,1917.1,1915.5,3.2078]
[1741964207314,1.04353,1916.8,1916.5,3.2078]
[1741964207623,3.2078,1916.9,1916.6,40.8]
[1741964207815,1.3736,1916.7,1916.6,40.8]
[1741964208122,0.00782166,1916.8,1916.6,46.5078]
[1741964208323,0.00782166,1916.8,1916.6,44.0078]
[1741964208829,1.04354,1916.7,1916.6,40.8]
[1741964209126,0.3765545,1916.8,1916.6,44.0078]
[1741964209325,0.00782166,1916.8,1916.6,44.0078]
[1741964209925,0.00782166,1916.8,1916.6,46.5078]
[1741964210125,1.04354,1916.7,1916.6,44.0078]
[1741964210327,1.05133166,1916.8,1916.6,44.0078]
[1741964210519,0.00782166,1916.8,1916.6,44.0078]
[1741964210720,1.05130166,1916.8,1916.6,44.0078]
[1741964210923,0.00782166,1916.8,1916.6,44.0078]
[1741964211121,0.3765545,1916.8,1916.5,0.00782166]
[1741964211329,1.04354,1916.7,1916.5,0.00782166]
[1741964211529,1.4200745,1916.8,1916.6,3.2078]
[1741964211830,0.3765545,1916.8,1916.5,0.00782166]
[1741964212029,0.00782166,1916.8,1916.6,3.2078]
[1741964212433,1.05131166,1916.8,1916.6,3.2078]
[1741964212633,1.04356,1916.7,1916.5,0.00782166]
[1741964212834,1.04356,1916.7,1916.5,1.33852166]
[1741964213025,1.04359,1916.6,1916.5,1.33852166]
[1741964213226,1.4083,1916.7,1916.5,1.33852166]
[1741964213427,2.82059284,1916.7,1916.5,1.33852166]
[1741964213628,1.04359,1916.6,1916.5,0.00782166]
[1741964213933,1.04379,1916.3,1916.0,3.2078]
[1741964214134,1.79743284,1916.6,1916.1,1.3199]
[1741964214337,5.00523284,1916.6,1916.1,1.3199]
[1741964214535,1.04376,1916.3,1916.1,1.3199]
[1741964215730,1.04372,1916.4,1916.1,1.3199]
[1741964216234,0.36873284,1916.4,1916.1,2.36376]
[1741964216434,1.04377,1916.3,1916.1,1.3199]
[1741964216638,1.04377,1916.3,1916.2,1.3199]
[1741964216935,1.4287,1916.6,1916.2,1.3199]
[1741964217131,1.04374,1916.4,1916.2,1.3199]
[1741964217532,1.4287,1916.6,1916.2,1.3199]
[1741964217733,1.04374,1916.4,1916.2,1.3199]
[1741964217937,1.79743284,1916.6,1916.2,1.3199]
[1741964218132,1.04376,1916.3,1916.2,1.3199]
[1741964218725,1.04384,1916.2,1916.0,44.01562166]
[1741964218933,1.04379,1916.3,1916.0,45.05954166]
[1741964219137,1.79743284,1916.6,1916.2,3.2078]
[1741964219338,4.25913166,1916.8,1916.4,3.2078]
[1741964219534,3.21562166,1916.8,1916.5,1.3286]
[1741964219831,0.00782166,1916.8,1916.7,1.04354]
[1741964220031,0.00782166,1916.8,1916.7,2.44264]
[1741964220436,0.00782166,1916.8,1916.7,4.94264]
[1741964220636,1.4481,1917.3,1916.7,3.8991]
[1741964220940,1.81683284,1917.3,1916.7,4.6069]
[1741964221131,7.63272284,1917.3,1916.8,40.8]
[1741964221335,1.04343,1917.0,1916.8,41.84346]
[1741964221536,2.987,1917.1,1916.8,40.8]
[1741964221834,0.00782166,1917.1,1916.8,40.8]
[1741964222038,0.00782166,1917.1,1917.0,1.04338]
[1741964222236,1.05116166,1917.1,1916.9,5.6503]
[1741964222432,1.05116166,1917.1,1916.9,4.6069]
[1741964222433,0.00782166,1917.1,1916.9,4.6069]
[1741964222639,1.05116166,1917.1,1916.9,5.65029]
[1741964223043,1.04338,1917.0,1916.9,4.6069]
[1741964223231,0.00782166,1917.1,1916.9,4.6069]
[1741964223541,1.04338,1917.0,1916.9,4.6069]
[1741964223742,1.04338,1917.0,1916.9,3.2078]
[1741964224038,1.71303284,1917.0,1916.9,1.04343]
[1741964224340,1.71303284,1917.0,1916.9,5.56543]
[1741964224539,2.75641284,1917.0,1916.9,4.522]
[1741964224734,1.04348,1916.8,1916.7,3.2078]
[1741964224933,2.60885,1916.7,1916.1,3.9238]
[1741964225238,2.38791,1916.6,1916.4,1.04369]
[1741964225444,2.38791,1916.6,1916.4,2.35789]
[1741964225738,1.04365,1916.5,1916.4,1.3142]
[1741964226042,2.45159,1916.5,1916.3,1.04374]
[1741964226245,2.82032284,1916.5,1916.3,4.5547]
[1741964226444,1.77663284,1916.5,1916.4,1.0437]
[1741964226639,4.5884,1916.9,1916.4,1.3469]
[1741964226844,1.4079,1916.7,1916.5,3.2078]
[1741964227138,1.4079,1916.9,1916.8,1.04348]
[1741964227541,2.45133,1916.9,1916.7,3.2078]
[1741964227740,2.45133,1916.9,1916.8,1.3469]
[1741964228445,1.77663284,1916.9,1916.5,3.2078]
[1741964228639,1.04359,1916.6,1916.5,1.3469]
[1741964228846,1.04359,1916.6,1916.5,4.5547]
[1741964229047,1.4079,1916.9,1916.5,4.5547]
[1741964229340,1.77663284,1916.9,1916.5,4.5547]
[1741964229539,1.04354,1916.7,1916.6,1.04356]
[1741964229735,1.0435,1916.8,1916.6,1.04359]
[1741964230048,1.3353,1916.8,1916.5,4.5547]
[1741964230240,1.70403284,1916.8,1916.5,4.5547]
[1741964230548,1.70403284,1916.8,1916.6,1.04357]
[1741964230753,1.70403284,1916.8,1916.7,1.04354]
[1741964230754,2.74754284,1916.8,1916.7,1.04354]
[1741964230943,0.6646,1917.0,1916.9,1.04343]
[1741964231245,2.38646166,1917.1,1916.8,1.3142]
[1741964231454,2.7551945,1917.1,1916.9,4.2512]
[1741964231747,1.04338,1917.0,1916.9,1.0434]
[1741964232043,1.3935,1917.0,1916.9,1.0434]
[1741964232645,2.43688,1917.0,1916.9,1.0434]
[1741964232944,2.43693,1917.0,1916.8,2.35764]
[1741964233150,1.04343,1916.9,1916.8,2.35765]
[1741964233340,1.3935,1917.0,1916.8,2.35765]
[1741964233341,2.4369,1917.0,1916.9,1.04343]
[1741964233541,1.04348,1916.8,1916.7,3.2078]
[1741964233840,1.3935,1917.0,1916.9,1.04343]
[1741964234244,1.3935,1917.0,1916.9,4.25123]
[1741964234948,1.66e-06,1917.1,1917.0,1.04338]
[1741964235152,1.4116,1917.9,1917.2,5.21627]
[1741964235345,1.4116,1917.9,1917.8,1.04294]
[1741964235346,2.82322284,1917.9,1917.8,1.04294]
[1741964235547,1.78033284,1917.9,1917.8,41.84294]
[1741964235942,2.82322284,1917.9,1917.8,41.84294]
[1741964236151,1.78033284,1917.9,1917.8,41.84294]
[1741964236344,2.82322284,1917.9,1917.8,41.84294]
[1741964236549,2.82322284,1917.9,1917.8,40.8]
[1741964236948,6.03102284,1917.9,1917.8,40.8]
[1741964237248,2.82322284,1917.9,1917.8,40.8]
[1741964237449,0.36873284,1917.9,1917.8,41.84294]
[1741964237650,2.82322284,1917.9,1917.8,41.84294]
[1741964237950,1.78033284,1917.9,1917.8,41.84294]
[1741964238348,2.82322284,1917.9,1917.8,40.8]
[1741964238749,5.80622284,1917.9,1917.8,41.84294]
[1741964239049,1.04294,1917.8,1917.7,0.00782166]
[1741964239251,1.3871,1917.8,1917.7,1.05081166]
[1741964239547,2.79877284,1917.8,1917.7,41.85081166]
[1741964239853,2.79877284,1917.8,1917.7,40.80782166]
[1741964240146,0.00782166,1918.0,1917.9,1.04289]
[1741964240351,1.7636545,1918.0,1917.9,1.04289]
[1741964240548,1.39492166,1918.0,1917.9,1.04289]
[1741964240958,2.43775166,1918.0,1917.9,1.04289]
[1741964241152,1.04289,1917.9,1917.8,1.4005]
[1741964241348,2.45069,1917.9,1917.8,1.4005]
[1741964241546,2.45069,1917.9,1917.8,2.44344]
[1741964241747,0.00782166,1918.0,1917.8,1.4005]
[1741964242046,1.05066166,1918.0,1917.9,2.41719]
[1741964242245,0.00782166,1918.0,1917.9,5.62499]
[1741964243251,1e-08,1918.0,1917.9,8.12499]
[1741964244052,1e-08,1918.0,1917.9,5.62499]
[1741964244360,1e-08,1918.0,1917.9,8.12499]
[1741964244657,1e-08,1918.0,1917.9,6.28360646]
[1741964245554,1e-08,1918.0,1917.9,5.62499]
[1741964246252,1e-08,1918.0,1917.9,8.12499]
[1741964247051,2.39668,1918.7,1918.6,1.04251]
[1741964247349,1.3542,1918.7,1918.6,41.84251]
[1741964247549,2.39665,1918.7,1918.6,41.84251]
[1741964247753,2.76538284,1918.7,1918.6,40.8]
[1741964247951,2.76538284,1918.7,1918.6,41.84251]
[1741964248149,2.76538284,1918.7,1918.6,40.8]
[1741964248948,2.76538284,1918.7,1918.0,7.82098]
[1741964248949,4.32915284,1918.7,1918.2,4.2505]
[1741964249153,1.04267,1918.3,1918.2,4.25052]
[1741964249348,1.04267,1918.3,1918.2,45.05052]
[1741964249546,1.389,1918.4,1918.3,1.04263]
[1741964249865,1.04267,1918.3,1918.2,45.05048]
[1741964250080,1.75773284,1918.4,1918.3,1.04267]
[1741964250326,2.43161,1918.4,1918.3,1.04267]
[1741964250669,1.389,1918.4,1918.3,1.04267]
[1741964251066,2.43161,1918.4,1918.3,1.04267]
[1741964251285,2.43161,1918.4,1918.2,45.4147]
[1741964251286,1.75773284,1918.4,1918.2,44.0078]
[1741964251471,1.75773284,1918.4,1918.2,45.05052]
[1741964251472,1.04267,1918.3,1918.2,45.05052]
[1741964251684,2.45607,1918.3,1918.2,45.05052]
[1741964251969,2.82480284,1918.3,1918.2,44.0078]
[1741964252165,2.82480284,1918.3,1918.2,45.05052]
[1741964252860,2.82480284,1918.3,1918.2,44.0078]
[1741964253562,2.82480284,1918.3,1918.2,45.05052]
[1741964254063,7.5724,1918.6,1918.2,45.05052]
[1741964254354,1.0426,1918.5,1918.4,1.04257]
[1741964254748,1.04261,1918.4,1918.3,2.44056]
[1741964255050,1.04267,1918.3,1918.2,44.0078]
[1741964255356,1.04267,1918.3,1918.2,40.8]
[1741964255557,1.41140284,1918.3,1918.2,40.8]
[1741964256160,2.74440284,1918.3,1918.2,40.8]
[1741964258160,2.74440284,1918.3,1917.7,3.21562166]
[1741964258161,1.04282,1918.1,1917.7,7.17490166]
[1741964258361,1.04282,1918.1,1917.9,3.2078]
[1741964258558,1.04282,1918.1,1917.7,4.56742166]
[1741964258559,1.3748,1918.0,1917.7,4.56742166]
[1741964258754,2.41765,1918.0,1917.9,1.04289]
[1741964258953,2.78638284,1918.0,1917.9,40.8]
[1741964259154,1.74353284,1918.0,1917.9,41.84289]
[1741964259355,0.36873284,1918.0,1917.9,41.84289]
[1741964259550,1.41156284,1918.0,1917.9,41.84289]
[1741964259757,1.41156284,1918.0,1917.9,40.8]
[1741964259961,1.41156284,1918.0,1917.9,41.84289]
[1741964260363,1.41156284,1918.0,1917.9,40.8]
[1741964260760,2.13426284,1918.0,1917.9,40.8]
[1741964260970,5.34206284,1918.0,1917.9,40.8]
[1741964261260,12.17306284,1918.0,1917.9,40.8]
[1741964261459,10.84655501,1918.0,1917.7,0.00782166]
[1741964261660,4.25074,1917.8,1917.7,0.00782166]
[1741964262064,5.60574,1917.8,1917.7,0.00782166]
[1741964262371,5.69080733,1917.8,1917.7,0.00782166]
[1741964262663,8.19080658,1917.8,1917.7,0.00782166]
[1741964263269,5.69080658,1917.8,1917.7,0.00782166]
[1741964263866,1.04316,1917.4,1917.3,40.8]
[1741964264055,7.22596,1917.4,1917.3,40.8]
[1741964264461,7.31104547,1917.4,1917.3,40.8]
[1741964264659,8.01074547,1917.4,1917.3,40.8]
[1741964264875,8.34338547,1917.4,1917.0,1.3803]
[1741964265077,3.2078,1917.2,1916.5,0.6601]
[1741964265276,3.2078,1917.2,1916.6,4.25139]
[1741964265277,1.04358,1916.7,1916.6,4.25139]
[1741964265579,1.04358,1916.7,1916.6,40.8]
[1741964265973,5.58359,1916.9,1916.6,40.8]
[1741964265974,2.975,1916.9,1916.6,40.8]
[1741964266167,1.04354,1916.7,1916.6,40.8]
[1741964266372,1.04354,1916.7,1916.6,41.84359]
[1741964266581,1.417,1916.8,1916.6,41.84359]
[1741964266772,1.04354,1916.7,1916.6,41.84359]
[1741964266975,2.46053,1916.8,1916.6,40.8]
[1741964267177,1.04354,1916.7,1916.6,41.84356]
[1741964267379,1.04354,1916.7,1916.6,43.19196]
[1741964268177,1.417,1916.8,1916.6,45.3562]
[1741964268483,8.79099,1917.2,1916.7,1.3484]
[1741964268681,1.3388,1917.1,1916.7,1.3484]
[1741964268979,1.04331,1917.2,1917.1,1.04332]
[1741964269183,1.04326,1917.3,1917.2,1.04327]
[1741964269381,1.04332,1917.2,1917.1,1.0433]
[1741964269576,1.04332,1917.2,1917.1,40.8]
[1741964269981,4.01832,1917.2,1917.1,40.8]
[1741964270284,6.11961193,1917.2,1917.1,40.8]
[1741964270480,9.32741193,1917.2,1917.1,40.8]
[1741964272980,1.04338,1917.0,1916.9,1.3945]
[1741964273586,1.04338,1917.0,1916.9,42.1945]
[1741964275590,4.25118,1917.0,1916.9,42.1945]
[1741964275882,4.33628051,1917.0,1916.9,40.8]
[1741964276081,1.12848051,1917.0,1916.9,40.8]
[1741964276281,1.12847989,1917.0,1916.9,40.8]
[1741964276683,4.33627989,1917.0,1916.9,40.8]
[1741964277588,4.3362856,1917.0,1916.9,40.8]
[1741964278579,1.04354,1916.7,1916.6,1.334]
[1741964279180,1.04354,1916.7,1916.6,42.134]
[1741964280081,2.41524,1916.7,1916.6,42.134]
[1741964280393,1.04354,1916.7,1916.6,43.17757]
[1741964280993,1.04354,1916.7,1916.6,43.17759]
[1741964281491,1.04354,1916.8,1916.7,1.04352]
[1741964281694,1.04354,1916.8,1916.7,1.3318]
[1741964281891,2.43534,1916.8,1916.7,1.3318]
[1741964282195,2.43534,1916.8,1916.7,42.1318]
[1741964282792,1.04354,1916.8,1916.7,43.17534]
[1741964283189,4.3648,1917.1,1916.7,47.94843]
[1741964283394,1.3918,1917.1,1917.0,1.04338]
[1741964283693,1.04332,1917.1,1917.0,1.04338]
[1741964283990,6.98764,1917.3,1916.9,4.5743]
[1741964284196,4.3796,1917.3,1916.9,4.5743]
[1741964284398,2.973,1917.3,1917.0,3.31545]
[1741964284591,1.04327,1917.2,1917.1,1.3665]